fUSD/lending_fUSD_20260620
["ID","MTS","AMOUNT","RATE_DAILY","PERIOD"]
[425815429,1781932239000,-500.0,0.00013751,2]
[425815425,1781932239000,-446.53,0.00013723,2]
[425815437,1781932239000,-1103.30662499,0.00014024,2]
[425815464,1781932239000,-209.34238986,0.00014577,2]
[425815447,1781932239000,-254.14945952,0.00014303,7]
[425815470,1781932239000,-500.0,0.00014577,2]
[425815466,1781932239000,-250.0,0.00014577,2]
[425815498,1781932239000,-315.23017,0.00014826,2]
[425815496,1781932239000,-3886.95,0.00014813,2]
[425815497,1781932239000,-264.47503872,0.00014819,2]
[425815495,1781932239000,-250.0,0.00014813,2]
[425815491,1781932239000,-193.0,0.00014811,2]
[425815494,1781932239000,-376.336763,0.00014811,2]
[425815492,1781932239000,-600.0,0.00014811,2]
[425815490,1781932239000,-1094071.8367,0.00014724,2]
[425815493,1781932239000,-600.0,0.00014811,2]
[425815488,1781932239000,-220.68374284,0.00014711,2]
[425815487,1781932239000,-1368.9391057,0.00014711,2]
[425815468,1781932239000,-300.18476206,0.00014577,2]
[425815489,1781932239000,-147265.57962302,0.00014714,2]
[425815474,1781932239000,-26257.39234076,0.00014624,2]
[425815480,1781932239000,-2273.25083333,0.00014624,2]
[425815472,1781932239000,-300.0,0.00014577,2]
[425815485,1781932239000,-6173.80625987,0.00014624,2]
[425815486,1781932239000,-3281.16360553,0.00014711,2]
[425815483,1781932239000,-881.80625,0.00014624,2]
[425815539,1781932240000,-819587.98707813,0.0001513,2]
[425815529,1781932240000,-500.0,0.00015129,2]
[425815528,1781932240000,-500.0,0.00015129,2]
[425815527,1781932240000,-531.60893431,0.00015129,2]
[425815531,1781932240000,-1000.0,0.00015129,2]
[425815533,1781932240000,-1000.0,0.00015129,2]
[425815532,1781932240000,-1000.0,0.00015129,2]
[425815544,1781932240000,-315.0,0.0001513,2]
[425815534,1781932240000,-500.0,0.00015129,2]
[425815535,1781932240000,-500.0,0.00015129,2]
[425815537,1781932240000,-500.0,0.00015129,2]
[425815547,1781932240000,-315.0,0.0001513,2]
[425815538,1781932240000,-502.70111222,0.00015129,2]
[425815540,1781932240000,-567.150646,0.0001513,2]
[425815543,1781932240000,-310.0,0.0001513,2]
[425815542,1781932240000,-311.0,0.0001513,2]
[425815541,1781932240000,-313.0,0.0001513,2]
[425815546,1781932240000,-310.0,0.0001513,2]
[425815545,1781932240000,-311.0,0.0001513,2]
[425815549,1781932240000,-313.0,0.0001513,2]
[425815548,1781932240000,-312.0,0.0001513,2]
[425815550,1781932240000,-315.0,0.0001513,2]
[425815530,1781932240000,-500.0,0.00015129,2]
[425815536,1781932240000,-221.49633195,0.00015129,2]
[425815526,1781932240000,-500.0,0.00015129,2]
[425815502,1781932240000,-1002.72,0.00014854,2]
[425815525,1781932240000,-500.0,0.00015129,2]
[425815499,1781932240000,-1000.0,0.00014826,2]
[425815501,1781932240000,-441.07632505,0.00014847,2]
[425815507,1781932240000,-500.0,0.00014999,2]
[425815552,1781932240000,-621.47,0.000152,2]
[425815504,1781932240000,-220.68374284,0.00014899,2]
[425815500,1781932240000,-150.0,0.00014834,2]
[425815505,1781932240000,-21071.8543038,0.00014922,2]
[425815503,1781932240000,-4098.71236867,0.00014896,2]
[425815506,1781932240000,-515.97890957,0.00014999,2]
[425815508,1781932240000,-500.0,0.00014999,2]
[425815509,1781932240000,-500.0,0.00014999,2]
[425815510,1781932240000,-1000.0,0.00014999,2]
[425815511,1781932240000,-500.0,0.00014999,2]
[425815512,1781932240000,-514.46747652,0.00014999,2]
[425815519,1781932240000,-1163.43410366,0.0001503,2]
[425815514,1781932240000,-288009.49098315,0.00015,2]
[425815518,1781932240000,-186.73038388,0.0001503,2]
[425815513,1781932240000,-500.0,0.00014999,2]
[425815520,1781932240000,-313.0,0.0001503,2]
[425815516,1781932240000,-175.57642911,0.00015,2]
[425815517,1781932240000,-400.35757359,0.0001503,2]
[425815515,1781932240000,-263.36464366,0.00015,2]
[425815521,1781932240000,-314.0,0.0001503,2]
[425815522,1781932240000,-900.0,0.00015068,2]
[425815523,1781932240000,-500.0,0.00015129,2]
[425815524,1781932240000,-500.0,0.00015129,2]
[425815553,1781932240000,-6226.29,0.0001531,2]
[425815551,1781932240000,-381.22418932,0.00015145,7]
[425815554,1781932240000,-150.99,0.0001531,2]
[425815581,1781932240000,-233.0,0.00016438,2]
[425815583,1781932240000,-1002.72,0.00016505,2]
[425815582,1781932240000,-900.0,0.00016438,2]
[425815584,1781932240000,-2399.32,0.00016567,2]
[425815590,1781932240000,-2000.0,0.00016869,2]
[425815591,1781932240000,-1173.98,0.00016869,2]
[425815592,1781932240000,-813.85,0.00016869,2]
[425815589,1781932240000,-736.0,0.00016819,2]
[425815597,1781932240000,-957.0,0.0001726,2]
[425815593,1781932240000,-269.55095981,0.00016981,10]
[425815596,1781932240000,-410.14,0.00017223,2]
[425815580,1781932240000,-166.0,0.00016438,2]
[425815594,1781932240000,-1555.5,0.00017127,2]
[425815599,1781932240000,-170.26,0.00017387,2]
[425815608,1781932240000,-179.70063988,0.00018077,10]
[425815600,1781932240000,-621.47,0.000174,2]
[425815601,1781932240000,-250.0,0.00017444,2]
[425815603,1781932240000,-1613.0535,0.00017675,2]
[425815607,1781932240000,-35586.25568387,0.00018048,2]
[425815605,1781932240000,-233.123883,0.00017808,2]
[425815604,1781932240000,-269.55095981,0.00017803,10]
[425815602,1781932240000,-374.27,0.00017501,2]
[425815606,1781932240000,-350.0,0.00018,2]
[425815555,1781932240000,-9999.99,0.0001531,2]
[425815595,1781932240000,-1236.56,0.00017223,2]
[425815585,1781932240000,-1500.0,0.00016579,2]
[425815598,1781932240000,-3281.16360546,0.00017338,2]
[425815586,1781932240000,-21071.85430377,0.00016601,2]
[425815578,1781932240000,-526.3,0.00016438,2]
[425815557,1781932240000,-999.94,0.0001531,2]
[425815560,1781932240000,-3532.86,0.00015431,2]
[425815559,1781932240000,-9999.99,0.0001531,2]
[425815561,1781932240000,-433.0,0.00015512,2]
[425815562,1781932240000,-208.2,0.00015616,2]
[425815558,1781932240000,-9999.99,0.0001531,2]
[425815564,1781932240000,-208.2,0.00015616,2]
[425815563,1781932240000,-208.2,0.00015616,2]
[425815565,1781932240000,-208.2,0.00015616,2]
[425815566,1781932240000,-208.2,0.00015616,2]
[425815567,1781932240000,-208.2,0.00015616,2]
[425815569,1781932240000,-208.2,0.00015616,2]
[425815556,1781932240000,-5063.45,0.0001531,2]
[425815588,1781932240000,-8993.41262832,0.000167,2]
[425815572,1781932240000,-153.61758556,0.00016,2]
[425815576,1781932240000,-35586.25568387,0.00016336,2]
[425815571,1781932240000,-500.0,0.00015616,2]
[425815570,1781932240000,-208.2,0.00015616,2]
[425815574,1781932240000,-208.1482903,0.00016,2]
[425815575,1781932240000,-9999.99,0.00016116,2]
[425815577,1781932240000,-500.0,0.0001635,2]
[425815573,1781932240000,-300.0,0.00016,2]
[425815579,1781932240000,-957.0,0.00016438,2]
[425815587,1781932240000,-714.38,0.0001665,7]
[425815568,1781932240000,-208.2,0.00015616,2]
[425815643,1781932241000,-1865.36488656,0.00019867,2]
[425815647,1781932241000,-2966.82627137,0.00019999,2]
[425815645,1781932241000,-21071.85430377,0.00019958,2]
[425815648,1781932241000,-500.0,0.00019999,2]
[425815636,1781932241000,-438.157559,0.000194,2]
[425815637,1781932241000,-438.157559,0.000194,2]
[425815635,1781932241000,-438.157559,0.000194,2]
[425815632,1781932241000,-362886.15151558,0.000194,2]
[425815634,1781932241000,-438.157559,0.000194,2]
[425815644,1781932241000,-186.09459873,0.000199,2]
[425815638,1781932241000,-151.0,0.000194,2]
[425815649,1781932241000,-500.0,0.00019999,2]
[425815659,1781932241000,-179.51593428,0.0002,2]
[425815650,1781932241000,-500.0,0.00019999,2]
[425815651,1781932241000,-500.0,0.00019999,2]
[425815661,1781932241000,-1765.08263732,0.0002,2]
[425815663,1781932241000,-26884.64867989,0.0002,2]
[425815660,1781932241000,-26027.14472791,0.0002,2]
[425815652,1781932241000,-291.10532732,0.00019999,2]
[425815662,1781932241000,-3950.0,0.0002,2]
[425815655,1781932241000,-500.0,0.00019999,2]
[425815653,1781932241000,-551.34184329,0.00019999,2]
[425815654,1781932241000,-812.74,0.00019999,2]
[425815657,1781932241000,-5300.22509271,0.0002,2]
[425815646,1781932241000,-3281.16360546,0.00019965,2]
[425815641,1781932241000,-35586.25568387,0.00019759,2]
[425815610,1781932241000,-189.78,0.00018174,2]
[425815639,1781932241000,-384.16976805,0.00019432,2]
[425815658,1781932241000,-1560.08157259,0.0002,2]
[425815609,1781932241000,-1002.72,0.00018155,2]
[425815616,1781932241000,-694.29363139,0.000184,2]
[425815617,1781932241000,-372.12245507,0.0001841,10]
[425815614,1781932241000,-1000.0,0.00018326,2]
[425815611,1781932241000,-1672.7364795,0.00018223,2]
[425815612,1781932241000,-304.0,0.00018232,2]
[425815615,1781932241000,-20575.8,0.00018356,2]
[425815613,1781932241000,-21071.85430377,0.00018279,2]
[425815619,1781932241000,-199.5,0.00018465,2]
[425815620,1781932241000,-400.35757356,0.00018554,2]
[425815618,1781932241000,-526.3,0.0001841,2]
[425815621,1781932241000,-243.89385528,0.00018555,2]
[425815622,1781932241000,-1734.62772924,0.00018771,2]
[425815631,1781932241000,-150.0,0.00019399,2]
[425815630,1781932241000,-500.0,0.00019399,2]
[425815626,1781932241000,-372.12245507,0.00019232,10]
[425815625,1781932241000,-500.0,0.00019153,2]
[425815629,1781932241000,-500.0,0.00019399,2]
[425815624,1781932241000,-166.5,0.00019144,2]
[425815627,1781932241000,-621.47,0.000193,2]
[425815628,1781932241000,-1798.80895522,0.00019319,2]
[425815623,1781932241000,-220.18,0.00019,8]
[425815642,1781932241000,-1002.72,0.00019806,2]
[425815640,1781932241000,-242.97,0.00019681,2]
[425815633,1781932241000,-151.0,0.000194,2]
[425815656,1781932241000,-500.0,0.00019999,2]
[425815717,1781932241000,-266.0,0.00021,2]
[425815673,1781932241000,-614.0,0.0002,2]
[425815695,1781932241000,-526.3,0.00020381,2]
[425815694,1781932241000,-585.03266162,0.00020218,7]
[425815696,1781932241000,-1934.38338736,0.00020415,2]
[425815698,1781932241000,-150.0,0.00020566,2]
[425815697,1781932241000,-150.0,0.00020566,2]
[425815700,1781932241000,-150.0,0.00020566,2]
[425815707,1781932241000,-288.49280492,0.0002058,2]
[425815706,1781932241000,-150.0,0.0002058,2]
[425815701,1781932241000,-279.73608303,0.00020566,2]
[425815711,1781932241000,-614.0,0.00021,2]
[425815708,1781932241000,-2005.9555727,0.00020963,2]
[425815710,1781932241000,-158.0,0.00021,2]
[425815704,1781932241000,-150.0,0.0002058,2]
[425815703,1781932241000,-150.0,0.0002058,2]
[425815705,1781932241000,-150.0,0.0002058,2]
[425815702,1781932241000,-150.0,0.0002058,2]
[425815709,1781932241000,-157.0,0.00021,2]
[425815712,1781932241000,-834.0,0.00021,2]
[425815713,1781932241000,-191.0,0.00021,2]
[425815716,1781932241000,-152.0,0.00021,2]
[425815715,1781932241000,-487.0,0.00021,2]
[425815714,1781932241000,-194.0,0.00021,2]
[425815720,1781932241000,-500.0,0.0002126,2]
[425815718,1781932241000,-312.0,0.00021,2]
[425815664,1781932241000,-1316.98522877,0.0002,2]
[425815692,1781932241000,-2000.0,0.0002,7]
[425815690,1781932241000,-211.0,0.0002,2]
[425815719,1781932241000,-211.0,0.00021,2]
[425815699,1781932241000,-150.0,0.00020566,2]
[425815691,1781932241000,-8616.0,0.0002,2]
[425815665,1781932241000,-37986.99761428,0.0002,2]
[425815671,1781932241000,-157.0,0.0002,2]
[425815675,1781932241000,-190.63801148,0.0002,2]
[425815672,1781932241000,-158.0,0.0002,2]
[425815674,1781932241000,-190.63801148,0.0002,2]
[425815668,1781932241000,-4303.44349747,0.0002,2]
[425815669,1781932241000,-18125.39184301,0.0002,2]
[425815667,1781932241000,-13086.74438088,0.0002,2]
[425815670,1781932241000,-389.51983088,0.0002,2]
[425815687,1781932241000,-400.0,0.0002,2]
[425815677,1781932241000,-190.63801148,0.0002,2]
[425815666,1781932241000,-929.97434045,0.0002,2]
[425815678,1781932241000,-190.6380115,0.0002,2]
[425815689,1781932241000,-312.0,0.0002,2]
[425815693,1781932241000,-3285.6,0.0002,2]
[425815688,1781932241000,-266.0,0.0002,2]
[425815676,1781932241000,-190.63801148,0.0002,2]
[425815684,1781932241000,-298.29,0.0002,2]
[425815686,1781932241000,-152.0,0.0002,2]
[425815680,1781932241000,-191.0,0.0002,2]
[425815681,1781932241000,-194.0,0.0002,2]
[425815683,1781932241000,-15679.09,0.0002,2]
[425815682,1781932241000,-24146.36,0.0002,2]
[425815679,1781932241000,-834.0,0.0002,2]
[425815685,1781932241000,-487.0,0.0002,2]
[425815758,1781932242000,-500.0,0.00021511,2]
[425815751,1781932242000,-151.0,0.00021511,2]
[425815753,1781932242000,-151.0,0.00021511,2]
[425815752,1781932242000,-500.0,0.00021511,2]
[425815754,1781932242000,-151.0,0.00021511,2]
[425815749,1781932242000,-500.0,0.00021511,2]
[425815755,1781932242000,-500.0,0.00021511,2]
[425815747,1781932242000,-151.0,0.00021511,2]
[425815748,1781932242000,-151.0,0.00021511,2]
[425815756,1781932242000,-151.0,0.00021511,2]
[425815757,1781932242000,-151.0,0.00021511,2]
[425815764,1781932242000,-151.0,0.00021511,2]
[425815761,1781932242000,-500.0,0.00021511,2]
[425815760,1781932242000,-151.0,0.00021511,2]
[425815763,1781932242000,-500.0,0.00021511,2]
[425815766,1781932242000,-500.0,0.00021511,2]
[425815765,1781932242000,-151.0,0.00021511,2]
[425815762,1781932242000,-151.0,0.00021511,2]
[425815768,1781932242000,-500.0,0.00021511,2]
[425815767,1781932242000,-151.0,0.00021511,2]
[425815769,1781932242000,-151.0,0.00021511,2]
[425815750,1781932242000,-151.0,0.00021511,2]
[425815771,1781932242000,-3285.6,0.00021625,2]
[425815759,1781932242000,-151.0,0.00021511,2]
[425815746,1781932242000,-500.0,0.00021511,2]
[425815729,1781932242000,-151.0,0.00021511,2]
[425815738,1781932242000,-151.0,0.00021511,2]
[425815770,1781932242000,-500.0,0.00021511,2]
[425815721,1781932242000,-6499.59,0.0002137,2]
[425815722,1781932242000,-35586.25568387,0.00021471,2]
[425815723,1781932242000,-58609.03228133,0.000215,2]
[425815724,1781932242000,-226.229085,0.000215,2]
[425815725,1781932242000,-621.47,0.000215,2]
[425815731,1781932242000,-151.0,0.00021511,2]
[425815730,1781932242000,-200.0,0.00021511,2]
[425815734,1781932242000,-151.0,0.00021511,2]
[425815726,1781932242000,-151.0,0.00021511,2]
[425815732,1781932242000,-151.0,0.00021511,2]
[425815733,1781932242000,-151.0,0.00021511,2]
[425815727,1781932242000,-151.0,0.00021511,2]
[425815728,1781932242000,-151.0,0.00021511,2]
[425815735,1781932242000,-151.0,0.00021511,2]
[425815740,1781932242000,-151.0,0.00021511,2]
[425815741,1781932242000,-151.0,0.00021511,2]
[425815737,1781932242000,-151.0,0.00021511,2]
[425815744,1781932242000,-151.0,0.00021511,2]
[425815743,1781932242000,-500.0,0.00021511,2]
[425815745,1781932242000,-151.0,0.00021511,2]
[425815742,1781932242000,-151.0,0.00021511,2]
[425815736,1781932242000,-2080.17592889,0.00021511,2]
[425815739,1781932242000,-151.0,0.00021511,2]
[425815774,1781932242000,-170.26,0.00021734,2]
[425815775,1781932242000,-166.66,0.00021793,2]
[425815772,1781932242000,-21071.85430377,0.00021637,2]
[425815803,1781932242000,-151.0,0.00022607,2]
[425815805,1781932242000,-2236.95670847,0.00022607,2]
[425815809,1781932242000,-316.1320903,0.00022899,2]
[425815808,1781932242000,-205.1215075,0.00022834,4]
[425815807,1781932242000,-14368.0,0.0002274,2]
[425815806,1781932242000,-166.66,0.00022711,30]
[425815804,1781932242000,-200.0,0.00022607,2]
[425815811,1781932242000,-1019.23293404,0.00023,2]
[425815810,1781932242000,-162.82,0.0002294,2]
[425815812,1781932242000,-174.0,0.00023,2]
[425815813,1781932242000,-614.0,0.00023,2]
[425815817,1781932242000,-487.0,0.00023,2]
[425815816,1781932242000,-194.0,0.00023,2]
[425815815,1781932242000,-191.0,0.00023,2]
[425815818,1781932242000,-160.0,0.00023,2]
[425815814,1781932242000,-834.0,0.00023,2]
[425815819,1781932242000,-266.0,0.00023,2]
[425815821,1781932242000,-211.0,0.00023,2]
[425815820,1781932242000,-312.0,0.00023,2]
[425815823,1781932242000,-718.0,0.00023,2]
[425815826,1781932242000,-200.0,0.00023155,2]
[425815825,1781932242000,-151.0,0.00023155,2]
[425815773,1781932242000,-1000.0,0.0002168,2]
[425815802,1781932242000,-3281.16360546,0.00022592,2]
[425815801,1781932242000,-663.62,0.00022466,2]
[425815824,1781932242000,-621.47,0.00023,7]
[425815799,1781932242000,-1368.9391057,0.00022371,2]
[425815776,1781932242000,-500.0,0.00021817,2]
[425815777,1781932242000,-5000.0,0.00021918,2]
[425815778,1781932242000,-500.0,0.00021955,2]
[425815779,1781932242000,-157.0,0.00022,2]
[425815784,1781932242000,-194.0,0.00022,2]
[425815783,1781932242000,-191.0,0.00022,2]
[425815800,1781932242000,-343.1,0.00022466,2]
[425815782,1781932242000,-834.0,0.00022,2]
[425815780,1781932242000,-161.0,0.00022,2]
[425815781,1781932242000,-614.0,0.00022,2]
[425815786,1781932242000,-152.0,0.00022,2]
[425815785,1781932242000,-487.0,0.00022,2]
[425815798,1781932242000,-526.3,0.00022353,2]
[425815787,1781932242000,-450.0,0.00022,2]
[425815797,1781932242000,-166.66,0.00022252,30]
[425815793,1781932242000,-200.0,0.00022059,2]
[425815792,1781932242000,-151.0,0.00022059,2]
[425815795,1781932242000,-400.35757356,0.00022078,2]
[425815790,1781932242000,-211.0,0.00022,2]
[425815796,1781932242000,-324.72,0.00022086,7]
[425815794,1781932242000,-2157.14243826,0.00022059,2]
[425815789,1781932242000,-312.0,0.00022,2]
[425815788,1781932242000,-266.0,0.00022,2]
[425815791,1781932242000,-1770.6,0.00022,2]
[425815860,1781932243000,-438.157559,0.00024,2]
[425815852,1781932243000,-487.0,0.00024,2]
[425815854,1781932243000,-312.0,0.00024,2]
[425815855,1781932243000,-211.0,0.00024,2]
[425815856,1781932243000,-151.0,0.00024,2]
[425815861,1781932243000,-166.66,0.00024087,30]
[425815858,1781932243000,-438.157559,0.00024,2]
[425815859,1781932243000,-438.157559,0.00024,2]
[425815863,1781932243000,-213.75479553,0.00024164,4]
[425815866,1781932243000,-3408.55,0.00024174,2]
[425815874,1781932243000,-374.27,0.00024501,2]
[425815865,1781932243000,-982.04,0.00024174,2]
[425815869,1781932243000,-2494.55939288,0.00024251,2]
[425815862,1781932243000,-300.21,0.0002411,2]
[425815870,1781932243000,-213.4934412,0.00024314,2]
[425815867,1781932243000,-41355.35,0.00024174,2]
[425815868,1781932243000,-200.0,0.00024251,2]
[425815871,1781932243000,-526.3,0.00024324,2]
[425815873,1781932243000,-1163.43410364,0.00024415,2]
[425815872,1781932243000,-150.0,0.00024333,2]
[425815877,1781932243000,-1000.0,0.00024658,2]
[425815857,1781932243000,-438.157559,0.00024,2]
[425815864,1781932243000,-2418.55,0.00024174,2]
[425815853,1781932243000,-266.0,0.00024,2]
[425815840,1781932243000,-200.0,0.00023703,2]
[425815851,1781932243000,-194.0,0.00024,2]
[425815875,1781932243000,-1770.6,0.00024646,7]
[425815829,1781932243000,-35586.25568387,0.00023183,2]
[425815830,1781932243000,-298.32,0.00023199,7]
[425815827,1781932243000,-2319.72410669,0.00023155,2]
[425815828,1781932243000,-166.66,0.00023169,30]
[425815832,1781932243000,-755.26,0.00023288,2]
[425815831,1781932243000,-3285.6,0.0002325,7]
[425815835,1781932243000,-249.0,0.00023465,2]
[425815834,1781932243000,-476.54,0.0002342,7]
[425815833,1781932243000,-21071.85430377,0.00023315,2]
[425815836,1781932243000,-378.045947,0.00023607,7]
[425815839,1781932243000,-153.14864244,0.00023703,2]
[425815837,1781932243000,-166.66,0.00023628,30]
[425815838,1781932243000,-907.2182754,0.00023635,2]
[425815843,1781932243000,-366.824911,0.00023991,7]
[425815844,1781932243000,-300.0,0.00023999,2]
[425815847,1781932243000,-68874.67505529,0.00024,2]
[425815845,1781932243000,-1042.6760643,0.00024,2]
[425815849,1781932243000,-834.0,0.00024,2]
[425815841,1781932243000,-2405.55389863,0.00023703,2]
[425815842,1781932243000,-396.52501354,0.00023912,2]
[425815848,1781932243000,-614.0,0.00024,2]
[425815846,1781932243000,-3600.0,0.00024,2]
[425815850,1781932243000,-191.0,0.00024,2]
[425815879,1781932243000,-158.79,0.00024658,2]
[425815880,1781932243000,-205.1215075,0.00024698,4]
[425815915,1781932243000,-2682.57183977,0.00025347,2]
[425815910,1781932243000,-306.371383,0.00025142,7]
[425815905,1781932243000,-352.89,0.00025,2]
[425815911,1781932243000,-157.9,0.00025156,7]
[425815913,1781932243000,-3281.16360546,0.00025219,2]
[425815923,1781932243000,-500.0,0.00025592,2]
[425815914,1781932243000,-200.0,0.00025347,2]
[425815912,1781932243000,-158.79,0.00025156,7]
[425815916,1781932243000,-500.0,0.0002537,2]
[425815920,1781932243000,-500.0,0.00025592,2]
[425815922,1781932243000,-500.0,0.00025592,2]
[425815903,1781932243000,-352.89,0.00025,2]
[425815917,1781932243000,-206.0,0.00025416,2]
[425815918,1781932243000,-10755.0,0.00025463,7]
[425815919,1781932243000,-500.0,0.00025592,2]
[425815925,1781932243000,-500.0,0.00025592,2]
[425815924,1781932243000,-500.0,0.00025592,2]
[425815927,1781932243000,-376.46013188,0.00025592,2]
[425815926,1781932243000,-500.0,0.00025592,2]
[425815928,1781932243000,-150.0,0.00025592,2]
[425815930,1781932243000,-293.40159665,0.00025594,2]
[425815929,1781932243000,-212.34060835,0.00025594,4]
[425815876,1781932243000,-415.24,0.00024658,2]
[425815921,1781932243000,-500.0,0.00025592,2]
[425815909,1781932243000,-151.00138861,0.00025092,2]
[425815906,1781932243000,-352.89,0.00025,2]
[425815900,1781932243000,-352.89,0.00025,2]
[425815878,1781932243000,-157.9,0.00024658,2]
[425815881,1781932243000,-500.0,0.00024758,2]
[425815882,1781932243000,-200.0,0.00024799,2]
[425815883,1781932243000,-2586.85809042,0.00024799,2]
[425815884,1781932243000,-621.47,0.000248,7]
[425815886,1781932243000,-35586.25568387,0.00024895,2]
[425815887,1781932243000,-21071.85430377,0.00024994,2]
[425815901,1781932243000,-352.89,0.00025,2]
[425815888,1781932243000,-620.21825695,0.00025,2]
[425815890,1781932243000,-204.84484808,0.00025,2]
[425815893,1781932243000,-268.90962168,0.00025,2]
[425815891,1781932243000,-200.32820068,0.00025,2]
[425815885,1781932243000,-3285.6,0.00024875,7]
[425815895,1781932243000,-219.0,0.00025,2]
[425815897,1781932243000,-352.89,0.00025,2]
[425815899,1781932243000,-352.89,0.00025,2]
[425815894,1781932243000,-315.0,0.00025,2]
[425815889,1781932243000,-851.70008222,0.00025,2]
[425815898,1781932243000,-352.89,0.00025,2]
[425815892,1781932243000,-491.88882288,0.00025,2]
[425815896,1781932243000,-2000.0,0.00025,7]
[425815904,1781932243000,-352.89,0.00025,2]
[425815902,1781932243000,-352.89,0.00025,2]
[425815907,1781932243000,-179.76368085,0.00025092,2]
[425815970,1781932244000,-300.16843796,0.000271,2]
[425815972,1781932244000,-503.0,0.00027137,2]
[425815969,1781932244000,-1437.37823269,0.000271,2]
[425815963,1781932244000,-2991.49051684,0.00026991,2]
[425815967,1781932244000,-211.82324458,0.000271,2]
[425815962,1781932244000,-200.0,0.00026991,2]
[425815968,1781932244000,-289.4521925,0.000271,2]
[425815966,1781932244000,-310.22589716,0.000271,2]
[425815964,1781932244000,-121025.19656369,0.0002703,2]
[425815955,1781932244000,-229.0,0.00026548,7]
[425815971,1781932244000,-412.0,0.00027123,2]
[425815965,1781932244000,-324.536428,0.00027062,7]
[425815974,1781932244000,-163.74489571,0.0002727,2]
[425816000,1781932244000,-500.0,0.00027296,2]
[425815983,1781932244000,-500.0,0.00027296,2]
[425815988,1781932244000,-500.0,0.00027296,2]
[425815985,1781932244000,-500.0,0.00027296,2]
[425815973,1781932244000,-457.13452076,0.00027142,2]
[425815976,1781932244000,-500.0,0.0002727,2]
[425815980,1781932244000,-500.0,0.00027296,2]
[425815978,1781932244000,-1770.6,0.00027292,7]
[425815981,1781932244000,-500.0,0.00027296,2]
[425815979,1781932244000,-500.0,0.00027296,2]
[425815992,1781932244000,-500.0,0.00027296,2]
[425815993,1781932244000,-501.47667168,0.00027296,2]
[425815956,1781932244000,-35586.25568387,0.00026606,2]
[425815982,1781932244000,-156.43615192,0.00027296,2]
[425815958,1781932244000,-158.79,0.0002665,7]
[425815932,1781932244000,-157.9,0.00025654,30]
[425815952,1781932244000,-290.438989,0.00026498,2]
[425815936,1781932244000,-3408.55,0.00025786,2]
[425815935,1781932244000,-982.04,0.00025786,2]
[425815931,1781932244000,-400.35757356,0.00025602,2]
[425815989,1781932244000,-500.0,0.00027296,2]
[425815933,1781932244000,-158.79,0.00025654,30]
[425815934,1781932244000,-2418.55,0.00025786,2]
[425815937,1781932244000,-41355.35,0.00025786,2]
[425815939,1781932244000,-2781.82699784,0.00025895,2]
[425815943,1781932244000,-157.9,0.00026152,2]
[425815945,1781932244000,-1783.53,0.00026192,2]
[425815949,1781932244000,-200.0,0.00026443,2]
[425815940,1781932244000,-214.44,0.00026027,7]
[425815957,1781932244000,-157.9,0.0002665,7]
[425815947,1781932244000,-526.3,0.00026296,2]